fUSD/lending_fUSD_20240919
["ID","MTS","AMOUNT","RATE_DAILY","PERIOD"]
[338533675,1726721476895,-1437.14,0.00014369,2]
[338533676,1726721476904,-1826.31,0.00014369,2]
[338533677,1726721476913,-1580.63,0.00014369,2]
[338533678,1726721476922,-1833.27,0.00014369,2]
[338533679,1726721476932,-500.0,0.00014369,2]
[338533680,1726721476942,-500.0,0.00014369,2]
[338533681,1726721476952,-1564.65,0.00014369,2]
[338533682,1726721476961,-500.0,0.00014369,2]
[338533683,1726721476970,-616.44,0.00014369,2]
[338533684,1726721476980,-500.0,0.00014369,2]
[338533685,1726721476989,-559.41,0.00014369,2]
[338533686,1726721476999,-500.0,0.00014369,2]
[338533687,1726721477009,-2673.38,0.00014369,2]
[338533688,1726721477018,-500.0,0.00014369,2]
[338533689,1726721477028,-1762.66,0.00014369,2]
[338533690,1726721477037,-1599.88,0.00014369,2]
[338533691,1726721477046,-500.0,0.00014369,2]
[338533692,1726721477055,-500.0,0.00014369,2]
[338533693,1726721477065,-500.0,0.00014369,2]
[338533694,1726721477074,-519.0,0.00014369,2]
[338533695,1726721477083,-571.39,0.00014369,2]
[338533696,1726721477093,-2220.04,0.00014369,2]
[338533697,1726721477103,-500.0,0.00014369,2]
[338533698,1726721477112,-703.06,0.00014369,2]
[338533699,1726721477123,-1665.65,0.00014369,2]
[338533700,1726721477132,-1120.78,0.00014369,2]
[338533701,1726721477143,-1166.36,0.00014369,2]
[338533702,1726721477154,-2180.37,0.00014369,2]
[338533703,1726721477165,-500.0,0.00014369,2]
[338533704,1726721477174,-2089.01,0.00014369,2]
[338533705,1726721477184,-500.0,0.00014369,2]
[338533706,1726721477194,-500.0,0.00014369,2]
[338533707,1726721477204,-623.38,0.00014369,2]
[338533708,1726721477213,-1364.88,0.00014369,2]
[338533709,1726721477223,-3011.4,0.00014369,2]
[338533710,1726721477235,-521.69,0.00014369,2]
[338533711,1726721477252,-500.0,0.00014369,2]
[338533712,1726721477261,-500.0,0.00014369,2]
[338533713,1726721477270,-1429.86,0.00014369,2]
[338533714,1726721477279,-500.0,0.00014369,2]
[338533715,1726721477289,-3343.07,0.00014369,2]
[338533716,1726721477297,-892.59,0.00014369,2]
[338533717,1726721477307,-1571.57,0.00014369,2]
[338533718,1726721477317,-1001.27,0.00014369,2]
[338533719,1726721477326,-996.35,0.00014369,2]
[338533720,1726721477336,-1453.38,0.00014369,2]
[338533721,1726721477345,-500.0,0.00014369,2]
[338533722,1726721477354,-929.84,0.00014369,2]
[338533723,1726721477364,-500.0,0.00014369,2]
[338533724,1726721477374,-2250.97,0.00014369,2]
[338533725,1726721477383,-511.36,0.00014369,2]
[338533726,1726721477394,-500.0,0.00014369,2]
[338533727,1726721477404,-3796.74,0.00014369,2]
[338533728,1726721477414,-500.0,0.00014369,2]
[338533729,1726721477424,-500.0,0.00014369,2]
[338533730,1726721477435,-842.51,0.00014369,2]
[338533731,1726721477447,-1114.5,0.00014369,2]
[338533732,1726721477457,-704.72,0.00014369,2]
[338533733,1726721477466,-500.0,0.00014369,2]
[338533734,1726721477476,-939.23,0.00014369,2]
[338533735,1726721477489,-747.48,0.00014369,2]
[338533736,1726721477498,-1331.64,0.00014369,2]
[338533737,1726721477507,-2319.89,0.00014369,2]
[338533738,1726721477516,-849.39,0.00014369,2]
[338533739,1726721477651,-1530.11,0.00014369,2]
[338533740,1726721477670,-3358.66,0.00014369,2]
[338533741,1726721477680,-2550.56,0.00014369,2]
[338533742,1726721477689,-1268.13,0.00014369,2]
[338533743,1726721477699,-1988.95,0.00014369,2]
[338533744,1726721477708,-2973.05,0.00014369,2]
[338533745,1726721477718,-1758.32,0.00014369,2]
[338533746,1726721477728,-500.0,0.00014369,2]
[338533747,1726721477738,-1591.9,0.00014369,2]
[338533748,1726721477747,-513.53,0.00014369,2]
[338533749,1726721477757,-2784.12,0.00014369,2]
[338533750,1726721477766,-1092.38,0.00014369,2]
[338533751,1726721477774,-3145.68,0.00014369,2]
[338533752,1726721477784,-545.73,0.00014369,2]
[338533753,1726721477795,-500.0,0.00014369,2]
[338533754,1726721477804,-697.02,0.00014369,2]
[338533755,1726721477813,-571.98,0.00014369,2]
[338533756,1726721477823,-500.0,0.00014369,2]
[338533757,1726721477834,-1420.83,0.00014369,2]
[338533758,1726721477847,-966.62,0.00014369,2]
[338533759,1726721477857,-2282.0,0.00014369,2]
[338533760,1726721477867,-500.0,0.00014369,2]
[338533761,1726721477876,-1429.48,0.00014369,2]
[338533762,1726721477886,-1036.68,0.00014369,2]
[338533763,1726721477895,-500.0,0.00014369,2]
[338533764,1726721477904,-665.03,0.00014369,2]
[338533765,1726721477914,-500.0,0.00014369,2]
[338533766,1726721477925,-3190.95,0.00014369,2]
[338533767,1726721477935,-888.56,0.00014369,2]
[338533768,1726721477946,-613.97,0.00014369,2]
[338533769,1726721477956,-500.0,0.00014369,2]
[338533770,1726721477966,-500.0,0.00014369,2]
[338533771,1726721477975,-1798.32,0.00014369,2]
[338533772,1726721477986,-500.0,0.00014369,2]
[338533773,1726721477995,-4217.42,0.00014369,2]
[338533774,1726721478005,-1039.49,0.00014369,2]
[338533775,1726721478015,-2936.3,0.00014369,2]
[338533776,1726721478025,-575.39148208,0.00014369,2]
[338533777,1726721478035,-997.99,0.00014369,2]
[338533778,1726721478044,-500.0,0.00014369,2]
[338533779,1726721478054,-1100.68,0.00014369,2]
[338533780,1726721478064,-500.0,0.00014369,2]
[338533781,1726721478074,-1143.42,0.00014369,2]
[338533782,1726721478084,-594.3,0.00014369,2]
[338533783,1726721478093,-858.43,0.00014369,2]
[338533784,1726721478104,-3070.41,0.00014369,2]
[338533785,1726721478113,-957.37,0.00014369,2]
[338533786,1726721478123,-500.0,0.00014369,2]
[338533787,1726721478133,-500.0,0.00014369,2]
[338533788,1726721478143,-500.0,0.00014369,2]
[338533789,1726721478153,-2478.33,0.00014369,2]
[338533790,1726721478163,-1133.03,0.00014369,2]
[338533791,1726721478173,-529.43,0.00014369,2]
[338533792,1726721478184,-500.0,0.00014369,2]
[338533793,1726721478194,-439.20622013,0.00014369,2]
[338533794,1726721478204,-1731.86,0.00014369,2]
[338533795,1726721478214,-600.01,0.00014369,2]
[338533796,1726721478225,-754.81,0.00014369,2]
[338533797,1726721478236,-531.92,0.00014369,2]
[338533798,1726721478246,-500.0,0.00014369,2]
[338533799,1726721478256,-500.0,0.00014369,2]
[338533800,1726721478266,-500.0,0.00014369,2]
[338533801,1726721478276,-861.22,0.00014369,2]
[338533802,1726721478286,-500.0,0.00014369,2]
[338533803,1726721478296,-647.3,0.00014369,2]
[338533804,1726721478306,-1132.4,0.00014369,2]
[338533805,1726721478315,-500.0,0.00014369,2]
[338533806,1726721478325,-500.0,0.00014369,2]
[338533807,1726721478335,-3184.39,0.00014369,2]
[338533808,1726721478344,-1351.79,0.00014369,2]
[338533809,1726721478354,-1087.97,0.00014369,2]
[338533810,1726721478363,-500.0,0.00014369,2]
[338533811,1726721478373,-3249.66,0.00014369,2]
[338533812,1726721478383,-856.38,0.00014369,2]
[338533813,1726721478392,-678.37,0.00014369,2]
[338533814,1726721478402,-500.0,0.00014369,2]
[338533815,1726721478412,-1823.36,0.00014369,2]
[338533816,1726721478422,-500.0,0.00014369,2]
[338533817,1726721478431,-929.22,0.00014369,2]
[338533818,1726721478441,-747.18,0.00014369,2]
[338533819,1726721478451,-500.0,0.00014369,2]
[338533820,1726721478461,-2098.69,0.00014369,2]
[338533821,1726721478471,-580.79,0.00014369,2]
[338533822,1726721478480,-876.33,0.00014369,2]
[338533823,1726721478489,-675.87,0.00014369,2]
[338533824,1726721478499,-849.52,0.00014369,2]
[338533825,1726721478509,-726.23,0.00014369,2]
[338533826,1726721478519,-500.0,0.00014369,2]
[338533827,1726721478528,-3894.5,0.00014369,2]
[338533828,1726721478538,-768.99,0.00014369,2]
[338533829,1726721478548,-500.0,0.00014369,2]
[338533830,1726721478557,-514.81,0.00014369,2]
[338533831,1726721478567,-1678.77,0.00014369,2]
[338533832,1726721478577,-3588.29,0.00014369,2]
[338533833,1726721478588,-561.88,0.00014369,2]
[338533834,1726721478599,-3612.63,0.00014369,2]
[338533835,1726721478609,-500.0,0.00014369,2]
[338533836,1726721478619,-500.0,0.00014369,2]
[338533837,1726721478629,-1165.21,0.00014369,2]
[338533838,1726721478639,-1886.85,0.00014369,2]
[338533839,1726721478648,-2851.24,0.00014369,2]
[338533840,1726721478658,-5211.22,0.00014369,2]
[338533841,1726721478668,-2563.28,0.00014369,2]
[338533842,1726721478677,-628.73,0.00014369,2]
[338533843,1726721478687,-747.64,0.00014369,2]
[338533844,1726721478696,-1122.98,0.00014369,2]
[338533845,1726721478706,-510.27,0.00014369,2]
[338533846,1726721478715,-4847.2,0.00014369,2]
[338533847,1726721478725,-1711.51,0.00014369,2]
[338533848,1726721478735,-857.76,0.00014369,2]
[338533849,1726721478745,-500.0,0.00014369,2]
[338533850,1726721478755,-1224.38,0.00014369,2]
[338533851,1726721478765,-5936.67,0.00014369,2]
[338533852,1726721478776,-500.0,0.00014369,2]
[338533853,1726721478796,-729.36,0.00014369,2]
[338533854,1726721478806,-2012.25,0.00014369,2]
[338533855,1726721478816,-500.0,0.00014369,2]
[338533856,1726721478825,-1526.2,0.00014369,2]
[338533857,1726721478835,-2702.45,0.00014369,2]
[338533858,1726721478847,-500.0,0.00014369,2]
[338533859,1726721478857,-500.0,0.00014369,2]
[338533860,1726721478866,-500.0,0.00014369,2]
[338533861,1726721478876,-595.84,0.00014369,2]
[338533862,1726721478886,-2589.63,0.00014369,2]
[338533863,1726721478896,-500.0,0.00014369,2]
[338533864,1726721478905,-537.13,0.00014369,2]
[338533865,1726721478915,-275.7403625,0.00014369,2]
[338533866,1726721478926,-1383.21,0.00014369,2]
[338533867,1726721478936,-500.0,0.00014369,2]
[338533868,1726721478945,-1474.98,0.00014369,2]
[338533869,1726721478955,-1873.98,0.00014369,2]
[338533870,1726721478964,-1686.47,0.00014369,2]
[338533871,1726721478974,-500.0,0.00014369,2]
[338533872,1726721478984,-500.0,0.00014369,2]
[338533873,1726721478994,-620.39,0.00014369,2]
[338533874,1726721479004,-1845.18,0.00014369,2]
[338533875,1726721479014,-791.54,0.00014369,2]
[338533876,1726721479024,-669.2,0.00014369,2]
[338533877,1726721479034,-1162.75,0.00014369,2]
[338533878,1726721479045,-500.0,0.00014369,2]
[338533879,1726721479056,-500.0,0.00014369,2]
[338533880,1726721479065,-1305.31,0.00014369,2]
[338533881,1726721479075,-1911.46,0.00014369,2]
[338533882,1726721479085,-500.0,0.00014369,2]
[338533883,1726721479095,-500.0,0.00014369,2]
[338533884,1726721479105,-500.0,0.00014369,2]
[338533885,1726721479115,-1733.02,0.00014369,2]
[338533886,1726721479125,-1925.43,0.00014369,2]
[338533887,1726721479135,-152.88,0.00014384,2]
[338533888,1726721479145,-184.0119849,0.00014408,2]
[338533889,1726721479154,-9570.69524648,0.00014425,2]
[338533890,1726721479165,-207.0,0.0001446,2]
[338533891,1726721479175,-201.0,0.0001446,2]
[338533892,1726721479185,-207.0,0.0001446,2]
[338533893,1726721479196,-184.0119849,0.00014478,2]
[338533894,1726721479205,-619.85,0.00014518,2]
[338533895,1726721479215,-160.381513,0.0001452,2]
[338533896,1726721479225,-168.021281,0.00014521,2]
[338533897,1726721479236,-9570.77,0.00014542,2]
[338533898,1726721479246,-7508.21,0.00014542,2]
[338533899,1726721479256,-1753.74,0.00014542,2]
[338533900,1726721479265,-5398.62,0.00014542,2]
[338533901,1726721479275,-3072.27,0.00014542,2]
[338533902,1726721479284,-500.0,0.00014542,2]
[338533903,1726721479295,-7199.78,0.00014542,2]
[338533904,1726721479304,-4515.3,0.00014542,2]
[338533905,1726721479314,-1066.3,0.00014542,2]
[338533906,1726721479324,-5983.57,0.00014542,2]
[338533907,1726721479333,-16126.74,0.00014542,2]
[338533908,1726721479343,-1532.1,0.00014542,2]
[338533909,1726721479353,-500.0,0.00014542,2]
[338533910,1726721479367,-1307.0,0.00014542,2]
[338533911,1726721479377,-4721.83,0.00014542,2]
[338533912,1726721479387,-500.0,0.00014542,2]
[338533913,1726721479398,-1100.01,0.00014542,2]
[338533914,1726721479408,-1156.05,0.00014542,2]
[338533915,1726721479418,-3682.71,0.00014542,2]
[338533916,1726721479428,-1544.08,0.00014542,2]
[338533917,1726721479438,-2120.78,0.00014542,2]
[338533918,1726721479448,-500.0,0.00014542,2]
[338533919,1726721479458,-920.53,0.00014542,2]
[338533920,1726721479467,-1663.81,0.00014542,2]
[338533921,1726721479477,-1016.51,0.00014542,2]
[338533922,1726721479487,-1253.48,0.00014542,2]
[338533923,1726721479496,-803.69,0.00014543,2]
[338533924,1726721479506,-1045.08,0.00014543,2]
[338533925,1726721479515,-638.43,0.00014543,2]
[338533926,1726721479525,-656.17,0.00014543,2]
[338533927,1726721479542,-2128.72,0.00014543,2]
[338533928,1726721479551,-636.27,0.00014543,2]
[338533929,1726721479561,-1527.71,0.00014543,2]
[338533930,1726721479572,-546.15,0.00014543,2]
[338533931,1726721479581,-500.0,0.00014543,2]
[338533932,1726721479591,-500.0,0.00014543,2]
[338533933,1726721479601,-500.0,0.00014543,2]
[338533934,1726721479612,-2334.98,0.00014543,2]
[338533935,1726721479624,-1812.12,0.00014543,2]
[338533936,1726721479634,-2137.06,0.00014543,2]
[338533937,1726721479644,-529.5,0.00014543,2]
[338533938,1726721479654,-829.56,0.00014543,2]
[338533939,1726721479663,-1002.34,0.00014543,2]
[338533940,1726721479673,-647.32,0.00014543,2]
[338533941,1726721479683,-1107.68,0.00014543,2]
[338533942,1726721479692,-1200.49,0.00014543,2]
[338533943,1726721479702,-938.95,0.00014543,2]
[338533944,1726721479711,-500.0,0.00014543,2]
[338533945,1726721479721,-570.06,0.00014543,2]
[338533946,1726721479731,-2438.23,0.00014543,2]
[338533947,1726721479740,-1723.42,0.00014543,2]
[338533948,1726721479750,-1549.04,0.00014543,2]
[338533949,1726721479759,-965.9,0.00014543,2]
[338533950,1726721479769,-689.45,0.00014543,2]
[338533951,1726721479778,-1555.36,0.00014543,2]
[338533952,1726721479787,-833.73,0.00014543,2]
[338533953,1726721479796,-500.0,0.00014543,2]
[338533954,1726721479806,-1285.11,0.00014543,2]
[338533955,1726721479815,-500.0,0.00014543,2]
[338533956,1726721480131,-500.0,0.00014543,2]
[338533957,1726721480145,-3075.0,0.00014543,2]
[338533958,1726721480155,-25658.01,0.00014543,2]
[338533959,1726721480165,-513.63,0.00014543,2]
[338533960,1726721480175,-677.8,0.00014543,2]
[338533961,1726721480184,-500.0,0.00014543,2]
[338533962,1726721480194,-631.78,0.00014543,2]
[338533963,1726721480204,-500.0,0.00014543,2]
[338533964,1726721480215,-55626.13,0.00014543,2]
[338533965,1726721480225,-809.94,0.00014543,2]
[338533966,1726721480241,-559.03,0.00014543,2]
[338533967,1726721480255,-1891.11,0.00014543,2]
[338533968,1726721480264,-589.63,0.00014543,2]
[338533969,1726721480274,-519.42,0.00014543,2]
[338533970,1726721480283,-500.0,0.00014543,2]
[338533971,1726721480292,-967.44,0.00014543,2]
[338533972,1726721480302,-571.18,0.00014543,2]
[338533973,1726721480311,-500.0,0.00014543,2]
[338533974,1726721480321,-500.0,0.00014543,2]
[338533975,1726721480330,-500.0,0.00014543,2]
[338533976,1726721480339,-706.86,0.00014543,2]
[338533977,1726721480349,-12266.92,0.00014543,2]
[338533978,1726721480358,-667.44,0.00014543,2]
[338533979,1726721480367,-500.0,0.00014543,2]
[338533980,1726721480376,-727.92,0.00014543,2]
[338533981,1726721480386,-684.68,0.00014543,2]
[338533982,1726721480395,-1449.11,0.00014543,2]
[338533983,1726721480404,-2133.44,0.00014543,2]
[338533984,1726721480415,-1630.44,0.00014543,2]
[338533985,1726721480424,-633.88,0.00014543,2]
[338533986,1726721480433,-500.0,0.00014543,2]
[338533987,1726721480443,-500.0,0.00014543,2]
[338533988,1726721480452,-520.15,0.00014543,2]
[338533989,1726721480462,-500.0,0.00014543,2]
[338533990,1726721480471,-890.98,0.00014543,2]
[338533991,1726721480483,-3075.27,0.00014543,2]
[338533992,1726721480492,-500.0,0.00014543,2]
[338533993,1726721480501,-4865.01,0.00014543,2]
[338533994,1726721480510,-3909.77,0.00014543,2]
[338533995,1726721480520,-184.0119849,0.00014548,2]
[338533996,1726721480529,-219.0,0.0001459,2]
[338533997,1726721480540,-207.0,0.0001459,2]
[338533998,1726721480550,-201.0,0.0001459,2]
[338533999,1726721480560,-207.0,0.0001459,2]
[338534000,1726721480570,-184.0119849,0.00014619,2]
[338534001,1726721480580,-354.04,0.00014633,2]
[338534002,1726721480591,-5614.92,0.0001464,2]
[338534003,1726721480601,-839.46,0.0001464,2]
[338534004,1726721480610,-5838.77,0.0001464,2]
[338534005,1726721480620,-8254.25,0.0001464,2]
[338534006,1726721480630,-500.0,0.0001464,2]
[338534007,1726721480639,-500.0,0.0001464,2]
[338534008,1726721480649,-8367.19,0.0001464,2]
[338534009,1726721480660,-500.0,0.0001464,2]
[338534010,1726721480671,-500.0,0.0001464,2]
[338534011,1726721480682,-500.0,0.00014642,2]
[338534012,1726721480691,-172.01819958,0.00014642,2]
[338534013,1726721480701,-500.0,0.00014642,2]
[338534014,1726721480710,-873.67,0.00014642,2]
[338534015,1726721480719,-500.0,0.00014642,2]
[338534016,1726721480730,-3593.7,0.00014642,2]
[338534017,1726721480740,-500.0,0.00014642,2]
[338534018,1726721480750,-500.0,0.00014642,2]
[338534019,1726721480759,-1055.62,0.00014642,2]
[338534020,1726721480768,-500.0,0.00014642,2]
[338534021,1726721480777,-500.0,0.00014642,2]
[338534022,1726721480787,-3674.94,0.00014642,2]
[338534023,1726721480797,-3586.59,0.00014642,2]
[338534024,1726721480806,-500.0,0.00014642,2]
[338534025,1726721480815,-651.72,0.00014642,2]
[338534026,1726721480825,-500.0,0.00014642,2]
[338534027,1726721480835,-5850.28,0.00014642,2]
[338534028,1726721480847,-1382.02,0.00014642,2]
[338534029,1726721480857,-2255.74,0.00014642,2]
[338534030,1726721480866,-2984.89,0.00014642,2]
[338534031,1726721480875,-2539.01,0.00014642,2]
[338534032,1726721480885,-1228.99,0.00014642,2]
[338534033,1726721480895,-500.0,0.00014642,2]
[338534034,1726721480904,-864.0,0.00014642,2]
[338534035,1726721480914,-1567.12,0.00014642,2]
[338534036,1726721480925,-500.0,0.00014642,2]
[338534037,1726721480935,-2137.82,0.00014642,2]
[338534038,1726721480945,-2542.22,0.00014642,2]
[338534039,1726721480955,-500.0,0.00014642,2]
[338534040,1726721480964,-1031.79,0.00014642,2]
[338534041,1726721480974,-500.0,0.00014642,2]
[338534042,1726721480985,-500.0,0.00014642,2]
[338534043,1726721480994,-500.0,0.00014642,2]
[338534044,1726721481004,-500.0,0.00014642,2]
[338534045,1726721481014,-1979.95,0.00014642,2]
[338534046,1726721481023,-718.39,0.00014642,2]
[338534047,1726721481032,-500.0,0.00014642,2]
[338534048,1726721481042,-2404.47,0.00014642,2]
[338534049,1726721481052,-3103.02,0.00014642,2]
[338534050,1726721481062,-796.58,0.00014642,2]
[338534051,1726721481072,-500.0,0.00014642,2]
[338534052,1726721481082,-500.0,0.00014642,2]
[338534053,1726721481092,-1970.3,0.00014642,2]
[338534054,1726721481102,-500.0,0.00014642,2]
[338534055,1726721481111,-852.6,0.00014642,2]
[338534056,1726721481121,-500.0,0.00014642,2]
[338534057,1726721481131,-1157.46,0.00014642,2]
[338534058,1726721481141,-500.0,0.00014642,2]
[338534059,1726721481150,-500.0,0.00014642,2]
[338534060,1726721481160,-4549.72,0.00014642,2]
[338534061,1726721481170,-500.0,0.00014642,2]
[338534062,1726721481179,-607.23444632,0.00014642,2]
[338534063,1726721481189,-500.0,0.00014642,2]
[338534064,1726721481199,-500.0,0.00014642,2]
[338534065,1726721481208,-341.47500755,0.00014642,2]
[338534066,1726721481217,-500.0,0.00014642,2]
[338534067,1726721481227,-1025.3,0.00014642,2]
[338534068,1726721481239,-500.0,0.00014642,2]
[338534069,1726721481248,-500.0,0.00014642,2]
[338534070,1726721481259,-398.23,0.00014642,2]
[338534071,1726721481270,-500.0,0.00014642,2]
[338534072,1726721481280,-500.0,0.00014642,2]
[338534073,1726721481289,-5067.65,0.00014642,2]
[338534074,1726721481299,-2336.68,0.00014642,2]
[338534075,1726721481308,-1015.0,0.00014642,2]
[338534076,1726721481317,-2447.39,0.00014642,2]
[338534077,1726721481326,-456.34665777,0.00014642,2]
[338534078,1726721481336,-500.0,0.00014642,2]
[338534079,1726721481346,-500.0,0.00014642,2]
[338534080,1726721481355,-1390.48,0.00014642,2]
[338534081,1726721481365,-665.9,0.00014642,2]
[338534082,1726721481374,-500.0,0.00014642,2]
[338534083,1726721481384,-552.52,0.00014642,2]
[338534084,1726721481393,-1747.39,0.00014642,2]
[338534085,1726721481403,-538.3,0.00014642,2]
[338534086,1726721481413,-500.0,0.00014642,2]
[338534087,1726721481424,-2036.19,0.00014642,2]
[338534088,1726721481434,-820.59,0.00014642,2]
[338534089,1726721481444,-500.0,0.00014642,2]
[338534090,1726721481454,-2577.48,0.00014642,2]
[338534091,1726721481463,-500.0,0.00014642,2]
[338534092,1726721481473,-940.21,0.00014642,2]
[338534093,1726721481483,-500.0,0.00014642,2]
[338534094,1726721481493,-440.06873646,0.00014642,2]
[338534095,1726721481503,-500.0,0.00014642,2]
[338534096,1726721481512,-500.0,0.00014642,2]
[338534097,1726721481522,-4295.5,0.00014642,2]
[338534098,1726721481532,-2214.16,0.00014642,2]
[338534099,1726721481542,-804.83,0.00014642,2]
[338534100,1726721481551,-500.0,0.00014642,2]
[338534101,1726721481561,-5318.52,0.00014642,2]
[338534102,1726721481570,-2948.94,0.00014642,2]
[338534103,1726721481580,-500.0,0.00014642,2]
[338534104,1726721481590,-883.11,0.00014642,2]
[338534105,1726721481599,-2430.05,0.00014642,2]
[338534106,1726721481609,-1347.59,0.00014642,2]
[338534107,1726721481619,-500.0,0.00014642,2]
[338534108,1726721481628,-1784.36,0.00014642,2]
[338534109,1726721481638,-543.65,0.00014642,2]
[338534110,1726721481648,-500.0,0.00014642,2]
[338534111,1726721481657,-4898.56,0.00014642,2]
[338534112,1726721481667,-5474.71,0.00014642,2]
[338534113,1726721481677,-3076.01,0.00014642,2]
[338534114,1726721481687,-1838.4,0.00014642,2]
[338534115,1726721481696,-2927.56,0.00014642,2]
[338534116,1726721481706,-3222.22,0.00014642,2]
[338534117,1726721481717,-500.0,0.00014642,2]
[338534118,1726721481726,-9867.63,0.00014642,2]
[338534119,1726721481738,-1000.0,0.00014642,2]
[338534120,1726721481748,-500.0,0.00014642,2]
[338534121,1726721481758,-3670.49,0.00014642,2]
[338534122,1726721481767,-2599.93,0.00014642,2]
[338534123,1726721481777,-3218.25,0.00014642,2]
[338534124,1726721481786,-500.0,0.00014642,2]
[338534125,1726721481795,-500.0,0.00014643,2]
[338534126,1726721481805,-500.0,0.00014643,2]
[338534127,1726721481815,-500.0,0.00014643,2]
[338534128,1726721481824,-500.0,0.00014643,2]
[338534129,1726721481834,-1036.42,0.00014643,2]
[338534130,1726721481843,-1814.59,0.00014643,2]
[338534131,1726721481856,-568.03,0.00014643,2]
[338534132,1726721481865,-684.07,0.00014643,2]
[338534133,1726721481875,-500.0,0.00014643,2]
[338534134,1726721481887,-1592.43,0.00014643,2]
[338534135,1726721481896,-1457.88,0.00014643,2]
[338534136,1726721481905,-500.0,0.00014643,2]
[338534137,1726721481915,-1465.29,0.00014643,2]
[338534138,1726721481926,-1173.04,0.00014643,2]
[338534139,1726721481936,-1533.0,0.00014643,2]
[338534140,1726721481946,-554.01,0.00014643,2]
[338534141,1726721481955,-500.0,0.00014643,2]
[338534142,1726721481965,-727.95,0.00014643,2]
[338534143,1726721481975,-500.0,0.00014643,2]
[338534144,1726721481987,-500.0,0.00014643,2]
[338534145,1726721481996,-500.0,0.00014643,2]
[338534146,1726721482006,-500.0,0.00014643,2]
[338534147,1726721482015,-500.0,0.00014643,2]
[338534148,1726721482025,-500.0,0.00014643,2]
[338534149,1726721482035,-524.98,0.00014643,2]
[338534150,1726721482045,-750.88,0.00014643,2]
[338534151,1726721482055,-890.61,0.00014643,2]
[338534152,1726721482065,-150.0,0.00014643,2]
[338534153,1726721482074,-500.0,0.00014643,2]
[338534154,1726721482084,-500.0,0.00014643,2]
[338534155,1726721482093,-857.99,0.00014643,2]
[338534156,1726721482103,-651.41,0.00014643,2]
[338534157,1726721482112,-714.27,0.00014643,2]
[338534158,1726721482122,-1246.84,0.00014643,2]
[338534159,1726721482131,-580.24,0.00014643,2]
[338534160,1726721482141,-1875.92,0.00014643,2]
[338534161,1726721482151,-1045.57,0.00014643,2]
[338534162,1726721482160,-1994.98,0.00014643,2]
[338534163,1726721482170,-432.83018464,0.00014643,2]
[338534164,1726721482180,-500.0,0.00014643,2]
[338534165,1726721482190,-500.0,0.00014643,2]
[338534166,1726721482200,-500.0,0.00014643,2]
[338534167,1726721482210,-1444.54,0.00014643,2]
[338534168,1726721482219,-500.0,0.00014643,2]
[338534169,1726721482229,-885.15,0.00014643,2]
[338534170,1726721482240,-882.5,0.00014643,2]
[338534171,1726721482250,-500.0,0.00014643,2]
[338534172,1726721482259,-1126.2,0.00014643,2]
[338534173,1726721482269,-1036.13,0.00014643,2]
[338534174,1726721482278,-500.0,0.00014643,2]